bitfinex-derivatives/quotes_ETHF0:USTF0_20250828
["timestamp","ask_amount","ask_price","bid_price","bid_amount"]
[1756341396749,3.2078,4476.3,4476.2,1.2044]
[1756341397052,3.2078,4476.3,4476.2,42.0044]
[1756341397244,0.40203,4476.9,4476.3,1.09738]
[1756341397448,3.2078,4477.8,4477.2,0.717]
[1756341397651,3.2078,4477.8,4477.4,0.717]
[1756341397851,5.061,4479.6,4477.6,1.2044]
[1756341397852,0.40194,4478.0,4477.6,1.2044]
[1756341398049,0.40191,4478.2,4477.5,3.98310788]
[1756341398353,1.13632,4478.1,4477.5,26.27210788]
[1756341398552,0.7344,4478.1,4477.2,0.402]
[1756341398754,0.40196,4477.7,4477.1,1.2044]
[1756341398954,1.13641,4477.2,4476.8,22.276]
[1756341399252,0.7344,4477.5,4476.9,0.40202]
[1756341399454,0.7344,4477.5,4477.2,1.2044]
[1756341399649,0.402,4477.3,4476.7,22.7664]
[1756341399850,0.7344,4477.6,4476.9,3.2078]
[1756341400050,0.40197,4477.6,4476.9,3.2078]
[1756341400251,0.40198,4477.5,4477.0,1.2044]
[1756341400449,0.402,4477.3,4476.9,3.2078]
[1756341400658,0.7344,4477.1,4476.9,25.4798]
[1756341400954,0.00300479,4477.2,4477.0,1.2044]
[1756341401154,0.40500479,4477.2,4477.0,1.2044]
[1756341401553,1.1454,4477.0,4476.4,3.9031]
[1756341401855,0.00300479,4477.2,4477.1,1.2044]
[1756341402054,0.00300479,4477.2,4477.1,0.4874]
[1756341402255,0.00300479,4477.2,4476.4,3.9031]
[1756341402256,0.7344,4476.9,4476.6,1.2044]
[1756341402451,0.7344,4476.8,4476.6,23.4944]
[1756341402752,0.00300479,4477.2,4476.1,0.4021]
[1756341402753,0.7344,4477.1,4476.1,0.4874]
[1756341402948,2.28184,4476.8,4476.1,1.2044]
[1756341403149,0.40205,4476.7,4476.1,1.2044]
[1756341403361,0.40204,4476.8,4476.2,3.60988]
[1756341403653,3.2078,4477.1,4476.6,1.2044]
[1756341403852,3.2078,4477.1,4476.7,1.8997]
[1756341404060,0.00300479,4477.2,4476.9,0.6953]
[1756341404355,0.40202,4477.0,4476.4,0.4874]
[1756341404555,0.7344,4476.7,4476.4,0.4874]
[1756341404756,0.00300479,4477.2,4477.0,0.40202]
[1756341405052,0.00300479,4477.2,4477.1,1.2044]
[1756341405252,0.73740479,4477.2,4476.5,1.2044]
[1756341405460,1.203,4476.9,4476.5,0.4874]
[1756341405651,0.6768,4476.6,4476.4,22.287]
[1756341405956,1.8798,4476.5,4476.4,22.287]
[1756341406148,2.06342687,4476.5,4476.4,22.287]
[1756341406350,1.203,4476.2,4476.1,3.2078]
[1756341406655,0.40213,4475.8,4475.4,3.2078]
[1756341407152,1.1454,4476.2,4475.4,3.2078]
[1756341407153,0.40215,4475.6,4475.4,3.2078]
[1756341407362,1.8798,4475.5,4475.4,3.2078]
[1756341408051,0.7344,4475.4,4475.2,22.28]
[1756341408458,0.7344,4475.4,4475.2,22.7674]
[1756341408752,0.18361205,4475.3,4474.8,1.2044]
[1756341408957,0.7344,4475.1,4474.8,0.717]
[1756341409260,0.7344,4475.1,4474.9,0.4874]
[1756341409754,0.7344,4475.7,4475.0,22.7344]
[1756341409960,0.18363114,4475.6,4475.2,3.50921411]
[1756341410155,0.18363114,4475.5,4475.3,1.2044]
[1756341410454,0.18362792,4475.4,4475.2,4.71361411]
[1756341410654,3.2078,4475.8,4475.4,1.2044]
[1756341410859,3.2078,4475.8,4475.2,3.50921411]
[1756341410860,0.18362683,4475.7,4475.2,4.60668411]
[1756341411057,0.7344,4475.5,4475.3,1.2044]
[1756341411356,3.2078,4475.8,4475.2,4.71361411]
[1756341411555,0.40218,4475.3,4474.7,29.43141411]
[1756341411858,1.8798,4474.8,4474.7,3.50921411]
[1756341412560,0.7344,4474.8,4474.7,3.99661411]
[1756341412759,4.3532,4475.3,4474.7,4.71361411]
[1756341412957,0.18357709,4475.2,4475.0,0.717]
[1756341413162,0.18357709,4475.1,4474.8,1.8997]
[1756341413458,3.2078,4475.3,4474.7,25.75021411]
[1756341413660,0.18354717,4475.2,4474.8,1.8997]
[1756341413963,3.2078,4475.3,4474.7,25.75021411]
[1756341414155,3.2078,4475.3,4475.1,0.40218]
[1756341414356,0.7344,4475.7,4474.9,1.8997]
[1756341414563,3.2078,4476.0,4475.6,0.717]
[1756341414859,3.2078,4476.0,4475.9,1.2044]
[1756341415461,3.9422,4476.0,4475.9,0.4874]
[1756341415658,3.9422,4476.0,4475.4,4.22621411]
[1756341415959,1.4112,4475.6,4475.4,4.22621411]
[1756341416162,1.8798,4475.5,4475.4,3.50921411]
[1756341416860,1.8798,4475.9,4475.2,18.412]
[1756341417160,1.1454,4475.9,4475.2,18.412]
[1756341417360,1.8798,4475.3,4474.8,3.2078]
[1756341417551,1.8798,4475.7,4474.8,3.6952]
[1756341417755,0.7344,4475.2,4474.9,1.2044]
[1756341418156,0.40218,4475.2,4474.9,1.2044]
[1756341418369,0.7344,4475.0,4474.9,1.2044]
[1756341418558,1.8798,4474.9,4474.8,3.2078]
[1756341418758,0.7344,4474.9,4474.8,4.4122]
[1756341418960,0.7344,4474.9,4474.8,1.2044]
[1756341419356,1.81341,4474.8,4474.7,3.50921411]
[1756341419664,1.8798,4474.8,4474.7,3.50921411]
[1756341420259,0.7344,4474.8,4474.7,4.71361411]
[1756341420555,0.7344,4475.4,4474.7,4.71361411]
[1756341420751,1.00518,4476.5,4474.7,4.71361411]
[1756341420752,0.7344,4475.9,4475.1,0.4874]
[1756341420956,1.13652,4475.9,4475.7,1.2044]
[1756341421162,1.203,4475.9,4475.6,3.50921411]
[1756341421365,2.28193,4475.7,4475.6,3.50921411]
[1756341421565,0.40216,4475.5,4475.3,0.717]
[1756341421758,3.2078,4476.0,4474.9,3.50921411]
[1756341421759,1.78689,4475.1,4474.9,3.50921411]
[1756341422058,0.675,4475.0,4474.9,3.50921411]
[1756341422259,0.675,4475.6,4474.9,4.71821411]
[1756341422457,1.07719,4475.1,4475.0,0.4964]
[1756341422659,1.8745,4475.0,4474.9,3.50921411]
[1756341422859,0.675,4475.3,4474.9,3.91141411]
[1756341423168,0.675,4475.1,4475.0,1.209]
[1756341424360,0.7097,4475.9,4475.3,1.209]
[1756341424560,3.8828,4476.0,4475.7,1.209]
[1756341424761,0.40212,4475.9,4475.7,0.6616]
[1756341424962,3.2078,4476.0,4474.5,0.4964]
[1756341425162,1.3847,4475.7,4474.7,4.62403411]
[1756341425360,0.675,4475.6,4474.9,0.4964]
[1756341425560,0.675,4475.5,4475.4,1.209]
[1756341425771,0.675,4475.5,4475.4,4.71821411]
[1756341425965,0.675,4475.7,4475.4,3.50921411]
[1756341426169,0.675,4475.2,4475.1,23.342]
[1756341426370,1.60164,4475.7,4475.1,23.342]
[1756341426570,3.2078,4476.0,4475.8,0.40212]
[1756341426771,3.2078,4476.0,4475.9,4.71821411]
[1756341427066,0.40219,4475.1,4474.6,1.98107381]
[1756341427271,0.675,4474.8,4474.7,1.209]
[1756341427773,1.1648,4475.3,4474.7,23.331]
[1756341428070,0.675,4475.4,4475.3,1.209]
[1756341428366,0.40213,4475.8,4475.1,1.209]
[1756341428574,0.40211,4476.0,4475.6,1.209]
[1756341428760,1.07714,4475.7,4475.6,1.209]
[1756341429263,0.675,4475.7,4475.6,1.209]
[1756341429466,0.40212,4475.9,4475.5,0.6616]
[1756341429762,0.675,4475.8,4475.7,1.209]
[1756341429961,0.40216,4475.5,4475.3,22.6154]
[1756341430171,1.3847,4475.4,4475.3,0.4964]
[1756341430367,0.675,4475.3,4475.2,0.4964]
[1756341430567,0.40214,4475.7,4475.4,1.209]
[1756341430774,0.675,4475.2,4475.1,1.209]
[1756341431166,0.40213,4475.7,4475.1,1.209]
[1756341431973,1.8745,4475.9,4475.0,22.107]
[1756341432173,1.3847,4475.8,4475.0,22.107]
[1756341432377,1.3847,4475.8,4475.2,0.4964]
[1756341432573,0.40218,4475.2,4475.1,0.7126]
[1756341432778,2.27668,4475.2,4475.1,0.7126]
[1756341433172,2.27668,4475.2,4475.1,1.209]
[1756341433380,1.8745,4475.2,4475.1,1.209]
[1756341433578,3.8828,4475.7,4475.2,0.4964]
[1756341433777,3.8828,4475.7,4475.5,0.7126]
[1756341433976,3.8828,4475.7,4475.6,1.209]
[1756341434579,2.27663,4475.7,4475.6,0.4964]
[1756341434776,2.27663,4475.7,4475.1,3.59225381]
[1756341434972,0.40213,4475.7,4475.2,0.40217]
[1756341435276,0.675,4476.0,4475.8,1.209]
[1756341435476,1.8745,4475.8,4475.6,0.4964]
[1756341435774,1.60161,4476.0,4475.4,1.98107381]
[1756341435975,0.40211,4476.0,4475.4,1.98107381]
[1756341436275,0.40212,4475.9,4475.5,0.40215]
[1756341436479,0.675,4475.7,4475.6,1.61114]
[1756341436683,0.675,4475.7,4475.6,1.209]
[1756341436974,1.8745,4475.5,4475.4,1.98107381]
[1756341437277,0.675,4475.5,4475.4,1.209]
[1756341437466,0.675,4475.5,4475.3,22.46217]
[1756341437467,3.2078,4476.2,4475.6,0.40214]
[1756341437672,1.8745,4475.6,4475.5,2.00807213]
[1756341437975,1.8745,4475.6,4475.0,2.77175854]
[1756341437976,1.8745,4475.4,4475.3,2.00807213]
[1756341438277,0.675,4475.1,4474.8,2.41028213]
[1756341438766,0.675,4475.1,4475.0,1.209]
[1756341440172,1.3847,4475.5,4475.0,1.209]
[1756341440474,3.60995,4475.6,4474.9,2.00807213]
[1756341440674,0.675,4475.4,4475.3,1.209]
[1756341441182,1.8745,4475.4,4475.3,0.4964]
[1756341441380,0.7097,4476.0,4475.5,1.8706]
[1756341441582,3.6976,4476.2,4476.1,1.209]
[1756341441583,3.2078,4476.2,4476.1,1.209]
[1756341441884,3.8828,4476.2,4476.1,1.209]
[1756341443180,5.0823,4476.2,4476.1,0.4964]
[1756341443379,5.0823,4476.2,4476.0,3.50921411]
[1756341443579,1.8745,4476.1,4476.0,3.50921411]
[1756341443786,0.675,4476.1,4476.0,4.71821411]
[1756341443980,1.3847,4476.6,4476.0,4.71821411]
[1756341444284,1.1995,4476.2,4476.0,3.50921411]
[1756341444484,3.2078,4476.7,4476.0,3.50921411]
[1756341444485,1.8745,4476.1,4476.0,3.50921411]
[1756341444783,0.675,4476.1,4476.0,4.71821411]
[1756341445282,0.7097,4476.4,4476.0,4.17081411]
[1756341445579,0.7097,4476.3,4476.1,0.7126]
[1756341445786,0.7097,4476.3,4476.2,1.209]
[1756341446284,0.4898,4476.4,4476.0,4.17081411]
[1756341446285,0.675,4476.6,4476.5,0.40206]
[1756341446483,0.675,4476.6,4476.5,1.61106]
[1756341446678,0.4898,4476.9,4476.8,0.40203]
[1756341446977,0.675,4476.8,4476.7,1.209]
[1756341447178,0.675,4477.1,4477.0,1.61101]
[1756341447381,3.21080479,4477.2,4477.1,0.4964]
[1756341447581,3.21080479,4477.2,4477.1,1.209]
[1756341447772,3.88580479,4477.2,4477.1,1.209]
[1756341448083,5.08530479,4477.2,4477.1,1.209]
[1756341448285,5.08530479,4477.2,4477.1,0.4964]
[1756341448884,3.88580479,4477.2,4477.1,1.209]
[1756341449588,3.2078,4477.8,4476.9,21.961]
[1756341449882,3.8828,4477.8,4477.7,5.12016411]
[1756341450187,0.675,4477.8,4477.7,5.12016411]
[1756341450975,0.4898,4478.1,4477.7,5.12016411]
[1756341451181,3.2078,4478.3,4478.2,0.40191]
[1756341451484,0.675,4478.8,4478.7,0.40186]
[1756341452079,3.2078,4479.0,4478.9,0.4525]
[1756341452279,3.9053,4479.0,4478.9,1.1511]
[1756341452678,3.2078,4479.0,4478.6,5.06218411]
[1756341452876,1.2065,4478.9,4478.6,21.903]
[1756341453082,0.5011,4478.5,4478.3,3.50921411]
[1756341453280,7.2078,4479.0,4478.0,3.2078]
[1756341453489,1.904,4478.6,4478.0,3.2078]
[1756341453686,1.904,4478.1,4477.6,3.50921411]
[1756341453882,3.2078,4478.2,4477.3,54.7886]
[1756341454078,0.6975,4477.6,4477.5,1.1511]
[1756341454285,0.6975,4477.9,4477.7,0.6447]
[1756341454482,0.6975,4477.9,4477.8,1.1511]
[1756341454683,1.904,4477.9,4477.8,0.4525]
[1756341455183,0.6975,4477.9,4477.8,1.1511]
[1756341455384,0.6975,4478.2,4478.0,0.40192]
[1756341455591,0.6975,4478.2,4478.1,1.1511]
[1756341455790,1.904,4478.2,4477.6,1.55306]
[1756341456086,1.904,4478.2,4478.0,0.40192]
[1756341456490,0.6975,4478.2,4478.1,1.1511]
[1756341457792,0.6975,4478.5,4478.4,0.40189]
[1756341458085,0.6975,4478.5,4478.3,1.1511]
[1756341458294,0.6975,4478.5,4478.4,1.1511]
[1756341458690,1.904,4479.0,4478.8,0.40185]
[1756341458891,1.904,4479.0,4478.9,0.4525]
[1756341459189,0.6975,4479.0,4478.9,1.1511]
[1756341459397,3.2078,4479.2,4479.1,1.1511]
[1756341459694,3.9053,4479.2,4479.1,1.1511]
[1756341460099,5.1118,4479.2,4479.1,1.1511]
[1756341460795,0.40183,4479.1,4478.5,3.2078]
[1756341461094,3.2078,4478.7,4477.7,3.50921411]
[1756341461299,1.904,4477.8,4477.7,3.14231624]
[1756341461696,1.904,4478.1,4477.6,3.14231624]
[1756341461998,3.2078,4478.2,4477.6,3.14231624]
[1756341461999,1.904,4477.7,4477.6,3.14231624]
[1756341462501,1.904,4477.7,4477.6,3.59481624]
[1756341462698,1.904,4477.7,4477.6,3.14231624]
[1756341464204,2.30601,4477.1,4477.0,3.14231624]
[1756341464702,1.904,4477.1,4477.0,3.14231624]
[1756341465302,0.40201,4477.1,4476.7,3.2078]
[1756341465502,0.6975,4476.9,4476.8,0.4525]
[1756341465706,0.6975,4476.9,4476.8,1.1511]
[1756341466098,0.6975,4477.4,4477.3,1.1511]
[1756341466299,0.6975,4477.6,4477.5,1.1511]
[1756341466499,1.1986,4477.6,4477.3,3.9594239]
[1756341466700,1.904,4477.4,4477.3,4.6580239]
[1756341466904,1.904,4477.4,4477.3,3.9594239]
[1756341467606,1.904,4477.4,4477.3,4.6580239]
[1756341468206,0.6975,4477.4,4477.3,4.6580239]
[1756341468503,2.30598,4477.4,4477.3,3.9594239]
[1756341468802,0.40199,4477.3,4476.9,0.4525]
[1756341469006,1.1986,4477.2,4476.9,1.1511]
[1756341469197,0.6975,4477.5,4477.1,0.40201]
[1756341469394,0.6975,4477.6,4477.5,1.1511]
[1756341470107,0.6975,4477.4,4476.8,1.1511]
[1756341470602,0.6975,4477.4,4477.3,0.4525]
[1756341470795,1.904,4477.4,4477.2,0.6986]
[1756341470998,2.30599,4477.4,4476.9,0.4525]
[1756341471301,0.6975,4477.2,4476.9,1.1511]
[1756341471503,0.40199,4477.4,4476.9,0.6986]
[1756341471804,0.40199,4477.4,4476.7,7.1167639]
[1756341471805,0.40199,4477.4,4477.0,0.6986]
[1756341472005,0.6975,4477.2,4477.1,1.1511]
[1756341472507,1.904,4476.8,4476.7,3.9594239]
[1756341472707,1.904,4476.8,4476.7,3.5069239]
[1756341473904,0.4021,4476.1,4475.8,0.20101106]
[1756341474097,5.0051,4476.8,4475.8,0.20101106]
[1756341474098,1.60861,4476.0,4475.8,0.6986]
[1756341474302,3.2078,4476.5,4475.8,0.6986]
[1756341474303,0.6975,4476.4,4475.8,0.6986]
[1756341474504,0.40208,4476.3,4475.8,0.40212]
[1756341474702,0.6975,4476.2,4476.1,1.1511]
[1756341474900,1.4029,4476.2,4475.7,8.92599361]
[1756341475101,4.21297,4476.5,4475.7,8.92599361]
[1756341475102,1.904,4475.8,4475.7,6.92372679]
[1756341475302,1.904,4475.8,4475.7,6.7147239]
[1756341475703,1.904,4475.8,4475.7,7.1672239]
[1756341476003,1.904,4475.8,4475.7,6.7147239]
[1756341476301,0.6975,4475.8,4475.7,7.8658239]
[1756341476505,0.6975,4476.1,4475.7,6.7147239]
[1756341476705,0.6975,4476.1,4475.9,1.1511]
[1756341476900,0.6975,4476.1,4476.0,1.1511]
[1756341477614,0.6975,4476.3,4476.2,1.7958]
[1756341477802,3.9053,4476.5,4476.1,1.7958]
[1756341478003,5.51386,4476.5,4476.4,3.5069239]
[1756341479005,4.30736,4476.5,4476.4,4.6580239]
[1756341479208,5.51386,4476.5,4476.4,4.6580239]
[1756341480315,5.51386,4476.5,4476.4,3.5069239]
[1756341480510,0.4021,4476.1,4476.0,0.4525]
[1756341480702,0.6975,4475.9,4475.7,3.2078]
[1756341480906,0.40209,4476.3,4475.8,1.7958]
[1756341481107,3.2078,4476.5,4476.0,0.4021]
[1756341481506,3.2078,4477.0,4476.7,0.6986]
[1756341481716,0.670435,4477.3,4477.2,1.8192]
[1756341482014,1.1393,4477.4,4477.3,0.4707]
[1756341482312,3.2078,4477.5,4476.5,3.5069239]
[1756341482513,0.40205,4476.7,4476.5,3.5069239]
[1756341482815,0.40205,4476.7,4475.9,3.42075854]
[1756341482816,1.00499,4477.3,4476.1,21.699]
[1756341483115,0.22337,4477.3,4476.3,1.172]
[1756341483313,3.2078,4477.5,4476.7,0.7013]
[1756341483314,3.883,4477.5,4476.7,0.7013]
[1756341483512,3.6719,4477.5,4476.6,1.1197]
[1756341483713,0.6923,4477.1,4476.9,0.7013]
[1756341483913,0.6923,4477.1,4476.8,0.649]
[1756341484112,1.1564,4477.4,4476.9,0.4707]
[1756341484309,0.4641,4477.4,4476.6,1.1197]
[1756341484510,0.6923,4477.5,4477.4,1.172]
[1756341484710,3.2078,4478.6,4478.5,1.3503]
[1756341485015,0.6752,4479.6,4478.8,1.172]
[1756341485323,0.40181,4479.3,4478.5,3.5069239]
[1756341485610,0.6923,4479.0,4478.5,3.5069239]
[1756341485817,0.40186,4478.8,4478.3,0.4707]
[1756341486016,3.2078,4479.0,4478.1,22.879]
[1756341486210,3.2078,4479.0,4477.8,3.9088639]
[1756341486211,1.1564,4478.7,4477.8,5.50919072]
[1756341486415,1.3675,4478.4,4477.8,3.5069239]
[1756341486710,0.40191,4478.3,4477.8,3.5069239]
[1756341486918,1.1564,4478.0,4477.8,3.5069239]
[1756341487121,0.4641,4478.3,4477.2,6.08275682]
[1756341487316,1.00474,4478.4,4477.2,3.6785]
[1756341487617,0.40196,4477.7,4477.3,3.61319611]
[1756341487917,1.8316,4477.4,4477.3,3.61319611]
[1756341488110,1.8316,4477.4,4477.3,4.31449611]
[1756341488316,1.8316,4477.4,4477.3,3.14249611]
[1756341489315,0.40203,4476.9,4476.4,3.57633682]
[1756341489530,0.6752,4476.7,4476.5,1.172]
[1756341489710,1.3675,4476.6,4476.5,1.172]
[1756341489913,1.8316,4476.6,4476.5,1.172]
[1756341490114,0.40196,4477.7,4476.9,1.79392]
[1756341490314,1.1393,4477.5,4477.4,3.14249611]
[1756341490611,0.4641,4477.4,4476.8,3.14249611]
[1756341490816,3.2078,4477.4,4476.8,3.14249611]
[1756341491119,1.1393,4477.1,4477.0,1.8626]
[1756341491313,0.6752,4477.8,4477.3,0.4707]
[1756341491510,6.70358463,4480.6,4476.8,4.14756611]
[1756341491511,0.866,4478.4,4477.5,1.8626]
[1756341491823,1.1393,4478.3,4478.2,3.14249611]
[1756341492214,0.40193,4478.1,4477.7,0.40195]
[1756341492416,1.8316,4478.8,4477.6,3.14249611]
[1756341492716,0.6752,4478.7,4478.2,3.83309611]
[1756341492916,1.1564,4478.8,4478.4,0.40188]
[1756341492917,1.55826,4478.8,4478.4,0.40188]
[1756341493110,0.6752,4478.9,4478.8,1.56316]
[1756341493310,1.8316,4479.3,4479.2,1.1613]
[1756341493511,0.6923,4479.8,4479.5,0.40179]
[1756341493718,3.3078,4480.2,4478.8,3.14249611]
[1756341493719,1.8316,4480.1,4478.8,3.14249611]
[1756341494016,1.8316,4480.1,4478.9,1.8626]
[1756341494224,1.8316,4479.9,4479.7,0.40177]
[1756341494423,0.40175,4480.0,4479.7,0.40177]
[1756341494624,3.3078,4480.2,4479.8,0.40176]
[1756341494625,3.70953,4480.2,4479.8,0.40176]
[1756341494925,1.8316,4480.1,4479.4,4.30379611]
[1756341495121,1.8316,4480.1,4479.4,4.70559611]
[1756341495328,1.8316,4480.1,4479.4,4.30379611]
[1756341495626,1.8316,4480.1,4479.5,1.1613]
[1756341496326,0.40177,4479.8,4479.5,1.1613]
[1756341496519,0.4641,4479.7,4479.5,1.8626]
[1756341496719,1.8316,4479.6,4479.5,1.8626]
[1756341498028,0.6752,4479.6,4479.5,1.8626]
[1756341498324,1.8316,4480.0,4479.6,1.8626]
[1756341498526,2.23336,4479.9,4479.8,3.2078]
[1756341498919,0.4018,4479.4,4479.2,3.2078]
[1756341499120,1.8316,4479.3,4479.2,3.2078]
[1756341499920,0.40175,4480.0,4479.2,3.2078]
[1756341500222,2.23341,4479.3,4479.2,3.2078]
[1756341500725,0.40185,4478.9,4478.8,3.61319611]
[1756341500921,0.6752,4478.9,4478.8,5.00509611]
[1756341501130,1.55821,4479.3,4478.9,1.8626]
[1756341501324,1.55821,4479.3,4478.8,3.54434611]
[1756341501522,0.4641,4479.5,4478.8,3.14249611]
[1756341501826,1.8316,4478.9,4478.8,3.14249611]
[1756341502622,1.1393,4479.3,4478.9,1.8626]
[1756341502822,0.40181,4479.4,4479.0,0.40183]
[1756341503226,0.40181,4479.3,4478.8,3.54434611]
[1756341503429,2.23345,4478.9,4478.8,3.14249611]
[1756341503633,1.8316,4478.8,4478.7,3.2078]
[1756341503936,1.3675,4477.8,4477.7,5.0704]
[1756341504224,1.3675,4478.4,4477.8,2.26454]
[1756341504424,0.40189,4478.4,4478.3,1.8626]
[1756341504930,1.8316,4478.5,4478.4,0.4707]
[1756341505124,1.8316,4478.5,4478.4,1.8626]
[1756341505323,0.40185,4478.9,4478.2,6.75219611]
[1756341505528,1.1564,4478.5,4478.3,1.8626]
[1756341505830,1.8316,4478.4,4478.3,1.8626]
[1756341506132,0.4641,4478.8,4478.3,1.8626]
[1756341506336,1.76931,4479.3,4478.7,0.40186]
[1756341506629,1.8316,4478.9,4478.8,3.14249611]
[1756341507722,1.8316,4478.9,4478.3,0.4707]
[1756341507723,1.1564,4478.4,4478.3,0.4019]
[1756341508025,1.8316,4479.3,4478.3,0.8726]
[1756341508218,1.8316,4479.2,4478.3,0.8726]
[1756341508418,3.2078,4479.5,4478.3,0.4707]
[1756341508626,0.4641,4479.0,4478.9,0.4707]
[1756341509035,1.8316,4479.0,4478.9,1.8626]
[1756341509426,1.3675,4479.0,4478.9,1.8626]
[1756341509827,1.1564,4479.4,4478.7,4.30379611]
[1756341510027,1.07702,4479.3,4478.7,4.30379611]
[1756341510232,0.6752,4479.3,4478.8,0.7013]
[1756341510424,0.6752,4479.3,4479.2,1.8626]
[1756341510729,0.6752,4479.3,4479.2,1.10312]
[1756341510934,0.40178,4479.7,4479.3,0.4018]
[1756341511233,1.8316,4479.6,4479.4,1.8626]
[1756341511431,1.8316,4479.9,4479.6,1.8626]
[1756341511735,0.4018,4479.5,4479.3,4.47659611]
[1756341511921,0.40176,4479.9,4479.4,0.4018]
[1756341512127,3.3078,4480.2,4479.5,0.40179]
[1756341512434,0.40179,4479.6,4479.4,1.8018]
[1756341512636,0.6628,4479.5,4479.4,1.8018]
[1756341513426,1.7958,4479.5,4479.4,1.8018]
[1756341514134,1.7958,4479.4,4479.3,3.14249611]
[1756341514929,1.7958,4479.4,4479.3,4.94429611]
[1756341516333,2.9915,4479.4,4479.3,6.16029611]
[1756341517427,1.7958,4480.1,4479.3,6.16029611]
[1756341517632,2.9915,4479.4,4479.3,6.16029611]
[1756341518634,1.1957,4479.4,4479.3,6.16029611]
[1756341519027,2.3287,4479.8,4479.7,1.216]
[1756341519228,2.9915,4479.8,4479.7,3.0178]
[1756341519726,2.9915,4479.8,4479.3,3.14249611]
[1756341520031,1.5975,4479.4,4479.3,6.16029611]
[1756341520228,3.3933,4479.4,4479.3,6.16029611]
[1756341521233,3.3933,4479.4,4479.3,9.36809611]
[1756341521631,0.4018,4479.5,4479.4,1.8018]
[1756341521935,3.3933,4479.5,4479.4,3.0178]
[1756341522231,3.3933,4479.5,4479.4,2.3468]
[1756341522935,3.3933,4479.5,4479.4,3.0178]
[1756341524837,3.3933,4479.5,4479.4,1.216]
[1756341525628,3.3933,4479.5,4479.4,2.3468]
[1756341525828,3.3933,4479.5,4479.4,3.0178]
[1756341526037,2.9915,4479.5,4479.4,3.0178]
[1756341526435,1.1957,4479.5,4479.4,3.0178]
[1756341526631,0.4457,4479.8,4479.7,3.0178]
[1756341526936,2.9915,4479.4,4479.3,9.36809611]
[1756341527145,2.9915,4479.4,4479.3,4.4238]
[1756341527335,2.9915,4479.4,4479.3,3.6774]
[1756341529344,2.9915,4479.0,4478.9,3.91159611]
[1756341529644,2.9915,4479.0,4478.9,4.82619611]
[1756341529941,1.00442,4479.9,4478.9,4.82619611]
[1756341529942,2.9915,4480.7,4480.6,3.0178]
[1756341530140,2.9915,4480.7,4479.7,1.00444]
[1756341530141,1.6705,4481.1,4481.0,3.0178]
[1756341530636,2.9915,4481.1,4480.6,1.8018]
[1756341530831,1.1957,4480.8,4480.7,0.87128]
[1756341531028,2.9915,4480.8,4480.7,0.87128]
[1756341531435,2.9915,4480.8,4480.7,0.4696]
[1756341531741,2.9915,4480.8,4480.7,2.3468]
[1756341532040,2.9915,4480.8,4480.7,3.0178]
[1756341532443,1.8585,4480.8,4480.7,3.0178]
[1756341532642,2.9915,4480.8,4480.7,3.0178]
[1756341532843,2.9915,4480.7,4480.6,5.02159611]
[1756341533145,2.9915,4481.2,4481.1,3.0178]
[1756341534637,0.6582,4481.7,4481.5,0.40161]
[1756341534840,1.1957,4482.3,4482.2,3.0178]
[1756341535142,2.9915,4482.3,4482.2,2.3468]
[1756341535843,2.9915,4482.3,4482.2,3.0178]
[1756341536342,1.133,4482.7,4482.3,0.40154]
[1756341536550,2.9915,4482.7,4482.6,3.41932]
[1756341536744,2.9915,4482.7,4482.6,3.0178]
[1756341537046,1.8585,4483.0,4482.9,1.216]
[1756341537237,1.8585,4483.0,4482.9,6.16029611]
[1756341537445,2.9915,4482.1,4482.0,3.2078]
[1756341537643,1.1957,4482.1,4482.0,0.4696]
[1756341537948,2.9915,4482.7,4482.6,0.4696]
[1756341538551,1.1957,4482.4,4482.3,1.1327]
[1756341538750,2.9915,4482.4,4482.3,0.4696]
[1756341539351,3.39303,4482.4,4482.3,0.4696]
[1756341539654,2.9915,4482.4,4482.3,2.3468]
[1756341540056,2.9915,4482.4,4482.3,1.216]
[1756341540350,2.9915,4482.1,4482.0,5.5625]
[1756341540647,0.6628,4482.5,4482.0,6.2256]
[1756341540854,2.9915,4482.5,4482.4,3.0178]
[1756341541148,2.9915,4482.5,4482.4,0.4696]
[1756341541348,2.9915,4482.5,4482.0,4.3386]
[1756341541349,2.9915,4482.1,4482.0,3.2078]
[1756341541656,0.40155,4482.2,4481.5,1.1387]
[1756341541657,3.0171,4481.6,4481.5,3.2078]
[1756341542452,3.0171,4481.1,4481.0,4.4515]
[1756341542649,1.7881,4481.1,4481.0,3.2078]
[1756341543145,1.7881,4481.1,4481.0,4.2894]
[1756341543350,3.2078,4481.7,4481.3,0.40163]
[1756341543351,1.7881,4481.6,4481.3,0.40163]
[1756341543549,1.7881,4481.6,4481.3,3.54412611]
[1756341543949,0.6641,4481.8,4481.7,1.7371]
[1756341544556,1.7881,4482.0,4481.9,1.7371]
[1756341544850,1.3032,4482.2,4482.0,1.7371]
[1756341545251,0.6391,4482.7,4482.0,1.7371]
[1756341545452,0.6391,4482.7,4482.6,1.7371]
[1756341545751,1.7881,4482.9,4482.5,3.14249611]
[1756341545955,0.6641,4483.5,4482.8,1.2931]
[1756341546160,3.2078,4483.8,4483.1,3.54395611]
[1756341546452,5.39731,4483.8,4483.7,3.14249611]
[1756341546653,5.39731,4483.8,4483.7,3.58649611]
[1756341546853,1.70464,4483.4,4483.3,0.444]
[1756341547052,1.7881,4483.3,4483.2,1.2931]
[1756341547252,1.7881,4483.4,4483.1,3.14249611]